bitfinex-derivatives/quotes_BTCF0:USTF0_20251025
["timestamp","ask_amount","ask_price","bid_price","bid_amount"]
[1761413917406,0.13840408,111380.0,111370.0,0.1866526]
[1761413922409,0.10614835,111380.0,111370.0,0.1866526]
[1761413922802,0.10614835,111380.0,111370.0,0.20177759]
[1761413924510,0.10614835,111380.0,111370.0,0.05058]
[1761413927611,0.10614835,111380.0,111370.0,0.20177759]
[1761413928210,0.10614835,111380.0,111370.0,0.05058]
[1761413930612,0.10614835,111380.0,111370.0,0.20177759]
[1761413931008,0.10614835,111380.0,111370.0,0.05058]
[1761413931514,0.13840408,111380.0,111370.0,0.05058]
[1761413932913,0.13840408,111380.0,111370.0,0.20177759]
[1761413933115,0.13840408,111380.0,111370.0,0.05058]
[1761413933410,0.09251573,111380.0,111370.0,0.05058]
[1761413933614,0.13841549,111380.0,111370.0,0.05058]
[1761413937815,0.13841549,111380.0,111370.0,0.20177759]
[1761413938514,0.13841549,111380.0,111370.0,0.05058]
[1761413942314,0.13841549,111380.0,111370.0,0.20177759]
[1761413947823,0.10615976,111380.0,111370.0,0.20177759]
[1761413948014,0.11419121,111380.0,111370.0,0.20177759]
[1761413958035,0.13841743,111380.0,111370.0,0.20177759]
[1761413969639,0.1061617,111380.0,111370.0,0.20177759]
[1761413979752,0.13841743,111380.0,111370.0,0.20177759]
[1761413984655,0.13841743,111380.0,111370.0,0.1866526]
[1761413988059,0.11419121,111380.0,111370.0,0.1866526]
[1761413997862,0.13841702,111380.0,111370.0,0.1866526]
[1761414037891,0.11419121,111380.0,111370.0,0.1866526]
[1761414046715,0.11419121,111380.0,111370.0,0.20178332]
[1761414047913,0.13841664,111380.0,111370.0,0.20178332]
[1761414049915,0.10616091,111380.0,111370.0,0.20178332]
[1761414054920,0.13841664,111380.0,111370.0,0.20178332]
[1761414055922,0.10616091,111380.0,111370.0,0.20178332]
[1761414058823,0.13841664,111380.0,111370.0,0.20178332]
[1761414063828,0.10616091,111380.0,111370.0,0.20178332]
[1761414072831,0.1061499,111380.0,111370.0,0.20178332]
[1761414073831,0.13840563,111380.0,111370.0,0.20178332]
[1761414088157,0.11418211,111380.0,111370.0,0.20178332]
[1761414091055,0.11418211,111380.0,111370.0,0.05058]
[1761414091258,0.11418211,111380.0,111370.0,0.20178332]
[1761414097965,0.13840738,111380.0,111370.0,0.20178332]
[1761414108874,0.13840738,111380.0,111370.0,0.18666905]
[1761414127892,0.11418211,111380.0,111370.0,0.18666905]
[1761414137898,0.13840959,111380.0,111370.0,0.18666905]
[1761414160313,0.27449864,111380.0,111370.0,0.006]
[1761414160518,0.05831,111370.0,111360.0,8.05e-05]
[1761414160716,0.05831,111370.0,111360.0,0.15834955]
[1761414160717,0.24029197,111370.0,111360.0,0.15834955]
[1761414160917,0.24029197,111370.0,111360.0,0.17949955]
[1761414161118,0.10420292,111370.0,111360.0,0.17949955]
[1761414161907,0.11020292,111370.0,111360.0,0.18249955]
[1761414165720,0.24629197,111370.0,111360.0,0.18249955]
[1761414170824,0.11020292,111370.0,111360.0,0.0464105]
[1761414188640,0.14245865,111370.0,111360.0,0.0464105]
[1761414199046,0.14245865,111370.0,111360.0,0.0252605]
[1761414199242,0.14245865,111370.0,111360.0,0.0030805]
[1761414199844,0.14245865,111370.0,111360.0,0.0242705]
[1761414205246,0.14245865,111370.0,111360.0,0.0472805]
[1761414209150,0.11020292,111370.0,111360.0,0.0472805]
[1761414216265,0.14245865,111370.0,111360.0,0.0472805]
[1761414222868,0.06248227,111370.0,111360.0,0.29853252]
[1761414223067,0.08058831,111410.0,111390.0,0.0897644]
[1761414223068,0.0483836,111400.0,111390.0,0.0897644]
[1761414223267,0.01397,111410.0,111400.0,0.0897564]
[1761414223268,0.05654,111410.0,111400.0,0.0897564]
[1761414223474,0.05654,111410.0,111400.0,0.30250684]
[1761414223670,0.05654,111410.0,111400.0,0.75125342]
[1761414224172,0.05654,111410.0,111400.0,0.84100982]
[1761414224966,0.07354,111410.0,111400.0,0.84100982]
[1761414226976,0.07354,111410.0,111400.0,0.15125342]
[1761414227177,0.07354,111410.0,111400.0,0.46609342]
[1761414228175,0.07054,111410.0,111400.0,0.46609342]
[1761414228672,0.07354,111410.0,111400.0,0.46609342]
[1761414231277,0.05654,111410.0,111400.0,0.46609342]
[1761414231578,0.08154,111410.0,111400.0,0.46809342]
[1761414232876,0.08154,111410.0,111400.0,0.45282464]
[1761414234981,0.10238076,111410.0,111400.0,0.45282464]
[1761414238086,0.08154,111410.0,111400.0,0.54258104]
[1761414245395,0.08154,111410.0,111400.0,0.45282464]
[1761414249794,0.08154,111410.0,111400.0,0.13798464]
[1761414253099,0.11381,111410.0,111400.0,0.13798464]
[1761414264307,0.24979464,111410.0,111400.0,0.13798464]
[1761414264907,0.11381,111410.0,111400.0,0.13798464]
[1761414268006,0.1299236,111410.0,111400.0,0.13798464]
[1761414274209,0.7299236,111410.0,111400.0,0.13798464]
[1761414278009,0.71381592,111410.0,111400.0,0.13798464]
[1761414288533,1.02849592,111410.0,111400.0,0.13798464]
[1761414291433,0.71381592,111410.0,111400.0,0.13798464]
[1761414291834,1.02845592,111410.0,111400.0,0.13798464]
[1761414292841,1.02845592,111410.0,111400.0,0.15312644]
[1761414299150,1.07683952,111410.0,111400.0,0.15312644]
[1761414300656,1.02845592,111410.0,111400.0,0.15312644]
[1761414301850,1.07683952,111410.0,111400.0,0.15312644]
[1761414303253,1.07683952,111410.0,111400.0,0.002]
[1761414306946,0.47683952,111410.0,111400.0,0.002]
[1761414307256,0.4445636,111410.0,111400.0,0.002]
[1761414308557,0.62569004,111410.0,111400.0,0.002]
[1761414308761,0.57730644,111410.0,111400.0,0.002]
[1761414309149,0.42618,111410.0,111400.0,0.002]
[1761414309355,0.47460949,111410.0,111400.0,0.002]
[1761414313561,1.07460949,111410.0,111400.0,0.002]
[1761414316862,0.47460949,111410.0,111400.0,0.002]
[1761414320166,0.44460949,111410.0,111400.0,0.002]
[1761414323571,1.04460949,111410.0,111400.0,0.002]
[1761414348595,0.44460949,111410.0,111400.0,0.002]
[1761414354812,0.58064863,111410.0,111400.0,0.13803914]
[1761414358708,1.18064863,111410.0,111400.0,0.13803914]
[1761414360506,1.18064863,111410.0,111400.0,0.002]
[1761414360708,1.18064863,111410.0,111400.0,0.13803914]
[1761414361202,1.18064863,111410.0,111400.0,0.002]
[1761414368111,1.13221914,111410.0,111400.0,0.002]
[1761414372114,0.01357,111380.0,111370.0,0.03210916]
[1761414372410,0.08377359,111380.0,111370.0,0.1681483]
[1761414372710,0.10473702,111380.0,111370.0,0.13603914]
[1761414373309,0.10473702,111380.0,111370.0,0.13803914]
[1761414374307,0.10973702,111380.0,111370.0,0.14103914]
[1761414376114,0.10970812,111380.0,111370.0,0.14103914]
[1761414377519,0.10970812,111380.0,111370.0,0.74103914]
[1761414378016,0.08550023,111380.0,111370.0,0.74103914]
[1761414382323,0.09438342,111380.0,111370.0,0.74103914]
[1761414385822,0.08550023,111380.0,111370.0,0.74103914]
[1761414389332,0.10970812,111380.0,111370.0,0.74103914]
[1761414389533,0.11875222,111380.0,111370.0,0.74103914]
[1761414390236,0.10970812,111380.0,111370.0,0.74103914]
[1761414393038,0.08550023,111380.0,111370.0,0.74103914]
[1761414393337,0.09461984,111380.0,111370.0,0.74103914]
[1761414394243,0.09461984,111380.0,111370.0,1.05563914]
[1761414399244,0.11882773,111380.0,111370.0,1.05563914]
[1761414409855,0.10970812,111380.0,111370.0,1.05563914]
[1761414413253,0.11884751,111380.0,111370.0,1.05563914]
[1761414413857,0.10970812,111380.0,111370.0,1.05563914]
[1761414414058,0.05015812,111380.0,111370.0,0.59167828]
[1761414414756,0.05015812,111380.0,111370.0,0.4707369]
[1761414418151,0.02595023,111380.0,111370.0,0.4707369]
[1761414422145,0.05015812,111380.0,111370.0,0.4707369]
[1761414423758,0.02595023,111380.0,111370.0,0.4707369]
[1761414423956,0.08506023,111380.0,111370.0,0.3196]
[1761414424151,0.08506023,111380.0,111370.0,0.4707369]
[1761414425059,0.10926812,111380.0,111370.0,0.4707369]
[1761414430865,0.10926812,111380.0,111370.0,0.3196]
[1761414431054,0.10926812,111380.0,111370.0,0.4707369]
[1761414436966,0.10926812,111380.0,111370.0,0.3196]
[1761414437162,0.10926812,111380.0,111370.0,0.4707369]
[1761414452764,0.10926812,111380.0,111370.0,0.3196]
[1761414452968,0.10926812,111380.0,111370.0,0.4707369]
[1761414460081,0.08621812,111380.0,111370.0,0.4707369]
[1761414460584,0.10756812,111380.0,111370.0,0.4707369]
[1761414462777,0.05015812,111380.0,111370.0,0.4707369]
[1761414463184,0.07299812,111380.0,111370.0,0.4707369]
[1761414463377,0.02595023,111380.0,111370.0,0.4707369]
[1761414463787,0.04879023,111380.0,111370.0,0.4707369]
[1761414464783,0.06264023,111380.0,111370.0,0.4707369]
[1761414465986,0.08399023,111380.0,111370.0,0.4707369]
[1761414467379,0.08399023,111380.0,111370.0,0.5605173]
[1761414468088,0.08399023,111380.0,111370.0,0.6088763]
[1761414474795,0.08399023,111380.0,111370.0,0.7298044]
[1761414475399,0.02595023,111380.0,111370.0,0.7298044]
[1761414476298,0.04879023,111380.0,111370.0,0.7298044]
[1761414479111,0.03641,111390.0,111380.0,0.0897723]
[1761414479411,0.05776,111390.0,111380.0,0.3618373]
[1761414480399,0.05776,111390.0,111380.0,0.3648373]
[1761414480604,0.07876,111390.0,111380.0,0.3648373]
[1761414481305,0.07876,111390.0,111380.0,0.3648374]
[1761414489708,0.021,111390.0,111380.0,0.3648374]
[1761414491017,0.04190746,111390.0,111380.0,0.3648374]
[1761414491622,0.06437746,111390.0,111380.0,0.3648374]
[1761414493418,0.06437746,111390.0,111380.0,0.41328408]
[1761414494911,0.06437746,111390.0,111380.0,0.3648374]
[1761414496125,0.07763746,111390.0,111380.0,0.3648374]
[1761414497222,0.07763746,111390.0,111380.0,0.41328408]
[1761414498023,0.07763746,111390.0,111380.0,0.3648374]
[1761414499916,0.10024746,111390.0,111380.0,0.3648374]
[1761414506331,0.12445535,111390.0,111380.0,0.3648374]
[1761414508037,0.12445535,111390.0,111380.0,0.275065]
[1761414508238,0.10024746,111390.0,111380.0,0.32351168]
[1761414508536,0.10024746,111390.0,111380.0,0.41328408]
[1761414528454,0.10024746,111390.0,111380.0,0.42958408]
[1761414528455,0.07763746,111390.0,111380.0,0.42958408]
[1761414528751,0.08262789,111400.0,111380.0,0.46453408]
[1761414529053,0.08262789,111400.0,111390.0,0.629965]
[1761414529242,0.08262789,111400.0,111390.0,0.66229198]
[1761414529744,0.08262789,111400.0,111390.0,0.67116708]
[1761414530755,0.09162789,111400.0,111390.0,0.67316708]
[1761414531849,0.06742,111400.0,111390.0,0.67316708]
[1761414533755,0.06742,111400.0,111390.0,0.68928678]
[1761414533951,0.05385,111400.0,111390.0,0.78541108]
[1761414534642,0.05385,111400.0,111390.0,0.66442159]
[1761414536254,0.05385,111400.0,111390.0,0.69672184]
[1761414538054,0.05385,111400.0,111390.0,0.64827516]
[1761414544362,0.05385,111400.0,111390.0,0.55851086]
[1761414544563,0.05385,111400.0,111390.0,0.54327576]
[1761414544564,0.06662,111400.0,111390.0,0.54327576]
[1761414551270,0.05385,111400.0,111390.0,0.63940006]
[1761414558189,0.05385,111400.0,111390.0,0.65554649]
[1761414579109,0.05385,111400.0,111390.0,0.64918649]
[1761414579314,0.06751,111400.0,111390.0,0.64918649]
[1761414581112,0.06751,111400.0,111390.0,0.60073981]
[1761414588123,0.06751,111400.0,111390.0,0.64921708]
[1761414590325,0.05385,111400.0,111390.0,0.65662708]
[1761414591731,0.06751,111400.0,111390.0,0.64921708]
[1761414594924,0.06751,111400.0,111390.0,0.77012819]
[1761414598129,0.06751,111400.0,111390.0,0.72165092]
[1761414599343,0.08838116,111400.0,111390.0,0.72165092]
[1761414600241,0.06751,111400.0,111390.0,0.72165092]
[1761414600439,0.08838118,111400.0,111390.0,0.72165092]
[1761414602838,0.08838118,111400.0,111390.0,0.09374074]
[1761414603038,0.08838118,111400.0,111390.0,0.36572736]
[1761414603340,0.68838118,111400.0,111390.0,0.68024736]
[1761414606344,0.68838118,111400.0,111390.0,0.63176662]
[1761414612547,0.68838118,111400.0,111390.0,0.68024736]
[1761414613546,0.68838118,111400.0,111390.0,0.63347662]
[1761414616851,0.08838118,111400.0,111390.0,0.63347662]
[1761414618354,0.68838118,111400.0,111390.0,0.63347662]
[1761414627861,0.08838118,111400.0,111390.0,0.63347662]
[1761414629967,0.0885099,111400.0,111390.0,0.63347662]
[1761414631368,0.0885099,111400.0,111390.0,0.68195736]
[1761414638166,0.11273802,111400.0,111390.0,0.63347662]
[1761414638466,0.11273802,111400.0,111390.0,0.72324092]
[1761414646476,0.11273802,111400.0,111390.0,0.63347662]
[1761414647169,0.11273802,111400.0,111390.0,0.68195736]
[1761414647972,0.71273802,111400.0,111390.0,0.68195736]
[1761414650275,0.6885099,111400.0,111390.0,0.68195736]
[1761414652078,0.6885099,111400.0,111390.0,0.77172166]
[1761414652979,0.0885099,111400.0,111390.0,0.77172166]
[1761414653779,0.0748499,111400.0,111390.0,0.77913166]
[1761414653980,0.07485216,111400.0,111390.0,0.77913166]
[1761414656679,0.07485216,111400.0,111390.0,0.65824715]
[1761414668090,0.08756216,111400.0,111390.0,0.65824715]
[1761414674304,0.06656,111400.0,111390.0,0.65824715]
[1761414676307,0.06656,111400.0,111390.0,0.60976641]
[1761414677309,0.06656,111400.0,111390.0,0.65824899]
[1761414677695,0.08754526,111400.0,111390.0,0.65824899]
[1761414678206,0.06656,111400.0,111390.0,0.65824899]
[1761414682917,0.08754708,111400.0,111390.0,0.65824899]
[1761414688320,0.08754708,111400.0,111390.0,0.60976641]
[1761414688321,0.11177706,111400.0,111390.0,0.60976641]
[1761414695524,0.11177706,111400.0,111390.0,0.51259211]
[1761414698326,0.08754708,111400.0,111390.0,0.56107469]
[1761414711140,0.08754708,111400.0,111390.0,0.65083899]
[1761414716643,0.08754708,111400.0,111390.0,0.56107469]
[1761414716943,0.08754708,111400.0,111390.0,0.68197104]
[1761414726541,0.07483708,111400.0,111390.0,0.68938104]
[1761414728345,0.09906706,111400.0,111390.0,0.64089846]
[1761414729046,0.09906706,111400.0,111390.0,0.73066276]
[1761414736558,0.13137371,111400.0,111390.0,0.73066276]
[1761414736750,0.08652371,111400.0,111390.0,0.73066276]
[1761414737445,0.13210371,111400.0,111390.0,0.0917643]
[1761414737644,0.24854629,111400.0,111390.0,0.002]
[1761414737849,0.27277206,111400.0,111390.0,0.002]
[1761414738347,0.25658443,111400.0,111390.0,0.16023923]
[1761414738550,0.01275,111370.0,111360.0,0.04856308]
[1761414738760,0.01275,111370.0,111350.0,0.15823923]
[1761414738761,0.23978527,111370.0,111350.0,0.15823923]
[1761414739048,0.05833,111360.0,111350.0,0.35932]
[1761414739253,0.05820604,111370.0,111350.0,0.35932]
[1761414739254,0.05833,111370.0,111350.0,0.4557466]
[1761414739443,0.04558,111370.0,111360.0,0.05177]
[1761414739643,0.05833,111350.0,111340.0,0.04436]
[1761414739842,0.05839868,111350.0,111340.0,0.04436]
[1761414740053,0.05839868,111350.0,111340.0,0.18035923]
[1761414741349,0.05839868,111350.0,111340.0,0.18135923]
[1761414741748,0.06039868,111350.0,111340.0,0.19135923]
[1761414742550,0.04764868,111350.0,111340.0,0.19135923]
[1761414742755,0.04764868,111350.0,111340.0,0.19876923]
[1761414747860,0.00206868,111350.0,111340.0,0.19876923]
[1761414751163,0.02459868,111350.0,111340.0,0.19876923]
[1761414755665,0.04717868,111350.0,111340.0,0.19876923]
[1761414766379,0.04717868,111350.0,111340.0,0.24702408]
[1761414768287,0.06862929,111350.0,111340.0,0.24702408]
[1761414769283,0.06862929,111350.0,111340.0,0.19876923]
[1761414773485,0.04717868,111350.0,111340.0,0.19876923]
[1761414773685,0.06863598,111350.0,111340.0,0.19876923]
[1761414778699,0.06863598,111350.0,111340.0,0.21400447]
[1761414778899,0.06863598,111350.0,111340.0,0.30380887]
[1761414780796,0.06859935,111350.0,111340.0,0.30380887]
[1761414782696,0.08229935,111350.0,111340.0,0.20659447]
[1761414796312,0.08229935,111350.0,111340.0,0.05536]
[1761414796504,0.08229935,111350.0,111340.0,0.20659447]
[1761414812223,0.08229935,111350.0,111340.0,0.25509759]
[1761414815523,0.08229935,111350.0,111340.0,0.10386312]
[1761414817831,0.02348935,111350.0,111340.0,0.30475887]
[1761414818129,0.02348935,111350.0,111340.0,0.21495447]
[1761414818630,0.04675935,111350.0,111340.0,0.30475887]
[1761414822234,0.06927935,111350.0,111340.0,0.30475887]
[1761414840244,0.06927935,111350.0,111340.0,0.21495447]
[1761414840744,0.06927935,111350.0,111340.0,0.19982682]
[1761414842644,0.06927935,111350.0,111340.0,0.28963122]
[1761414846546,0.06927935,111350.0,111340.0,0.33813655]
[1761414848449,0.08203935,111350.0,111340.0,0.33813655]
[1761414848754,0.08214876,111350.0,111340.0,0.33813655]
[1761414852648,0.08214876,111350.0,111340.0,0.23997215]
[1761414860668,0.08214876,111350.0,111340.0,0.32977655]
[1761414862457,0.08214876,111350.0,111340.0,0.23997215]
[1761414864766,0.08214876,111350.0,111340.0,0.32977655]
[1761414866462,0.08214876,111350.0,111340.0,0.28127122]
[1761414871371,0.08214876,111350.0,111340.0,0.1451644]
[1761414871572,0.08214876,111350.0,111340.0,0.28127122]
[1761414884278,0.08214876,111350.0,111340.0,0.28077122]
[1761414888984,0.06061868,111350.0,111340.0,0.28077122]
[1761414889285,0.08205968,111350.0,111340.0,0.28077122]
[1761414892171,0.08205968,111350.0,111340.0,0.32927986]
[1761414897784,0.08205968,111350.0,111340.0,0.32877986]
[1761414900686,0.08205968,111350.0,111340.0,0.34392237]
[1761414901984,0.08205968,111350.0,111340.0,0.19267304]
[1761414902184,0.08205968,111350.0,111340.0,0.34392237]
[1761414902986,0.08205968,111350.0,111340.0,0.29541373]
[1761414908291,0.08205968,111350.0,111340.0,0.34392238]
[1761414911087,0.08205968,111350.0,111340.0,0.34342238]
[1761414918202,0.08205968,111350.0,111340.0,0.29491373]
[1761414930120,0.08205968,111350.0,111340.0,0.29771631]
[1761414957638,0.08205968,111350.0,111340.0,0.34622497]
[1761414958437,0.08205968,111350.0,111340.0,0.19497564]
[1761414958637,0.08205968,111350.0,111340.0,0.34622497]
[1761414960738,0.08205968,111350.0,111340.0,0.33109848]
[1761414964540,0.08205968,111350.0,111340.0,0.24129408]
[1761414974946,0.08205968,111350.0,111340.0,0.33109618]
[1761414975639,0.02350968,111350.0,111340.0,0.33795618]
[1761414976641,0.02350968,111350.0,111340.0,0.28944752]
[1761414978944,0.02350968,111350.0,111340.0,0.33795603]
[1761414979245,0.02350968,111350.0,111340.0,0.33795079]
[1761414979942,0.02350968,111350.0,111340.0,0.28944752]
[1761414980342,0.00206868,111350.0,111340.0,0.28944752]
[1761414980943,0.00206868,111350.0,111340.0,0.3537965]
[1761414992657,0.00206868,111350.0,111340.0,0.48991934]
[1761414992850,0.04515,111370.0,111360.0,0.142226]
[1761414993153,0.06651233,111370.0,111360.0,0.78051381]
[1761414993460,0.04515,111370.0,111360.0,0.78051381]
[1761414994258,0.04715,111370.0,111360.0,0.78851381]
[1761414995557,0.04515,111370.0,111360.0,0.78151381]
[1761414995759,0.04815,111370.0,111360.0,0.79651381]
[1761414996756,0.04815,111370.0,111360.0,0.80567747]
[1761414998963,0.003,111370.0,111360.0,0.80567747]
[1761415014468,0.02536,111370.0,111360.0,0.80567747]
[1761415014972,0.05724,111390.0,111380.0,0.13558]
[1761415015170,0.07859905,111390.0,111380.0,0.72534826]
[1761415015370,0.07859905,111390.0,111380.0,0.58922542]
[1761415016072,0.07859905,111390.0,111380.0,0.72534826]
[1761415017880,0.08059905,111390.0,111380.0,0.73734826]
[1761415018679,0.06024,111390.0,111380.0,0.79276717]
[1761415022685,0.06024,111390.0,111380.0,0.67163983]
[1761415030992,0.04379,111400.0,111390.0,0.1401724]
[1761415031290,0.06511338,111400.0,111390.0,0.29409332]
[1761415031490,0.07820338,111400.0,111390.0,0.29409332]
[1761415032191,0.05688,111400.0,111390.0,0.29409332]
[1761415032392,0.05988,111400.0,111390.0,0.30909332]
[1761415037595,0.08120101,111400.0,111390.0,0.30909332]
[1761415042204,0.08120101,111400.0,111390.0,0.35751223]
[1761415048005,0.08120101,111400.0,111390.0,0.35088223]
[1761415058419,0.08120101,111400.0,111390.0,0.30246332]
[1761415060227,0.10540095,111400.0,111390.0,0.30246332]
[1761415068535,0.08120101,111400.0,111390.0,0.35088223]
[1761415083446,0.08120101,111400.0,111390.0,0.35751223]
[1761415084660,0.08120101,111400.0,111390.0,0.34238593]
[1761415084854,0.08120101,111400.0,111390.0,0.47837797]
[1761415093364,0.05727,111420.0,111410.0,0.1339592]
[1761415093558,0.05727,111420.0,111410.0,0.7690148]
[1761415094159,0.05727,111420.0,111410.0,0.77791237]
[1761415094354,0.05727,111420.0,111410.0,0.73224343]
[1761415095055,0.04375,111420.0,111410.0,0.78071495]
[1761415095358,0.04375,111420.0,111410.0,0.80112495]
[1761415095560,0.04575,111420.0,111410.0,0.80112495]
[1761415098264,0.04575,111420.0,111410.0,0.75265343]
[1761415099363,0.02416,111420.0,111410.0,0.75265343]
[1761415099982,0.002,111420.0,111410.0,0.75265343]
[1761415100175,0.05684,111430.0,111420.0,0.1339512]
[1761415100382,0.05684,111430.0,111420.0,0.40873786]
[1761415101467,0.05684,111430.0,111420.0,0.42073786]
[1761415101468,0.05884,111430.0,111420.0,0.42073786]
[1761415102275,0.05984,111430.0,111420.0,0.42073786]
[1761415105281,0.0810478,111430.0,111420.0,0.42073786]
[1761415106179,0.05984,111430.0,111420.0,0.42073786]
[1761415122391,0.08104933,111430.0,111420.0,0.42073786]
[1761415123293,0.08104933,111430.0,111420.0,0.46910713]
[1761415139105,0.06795933,111430.0,111420.0,0.47596713]
[1761415146709,0.06795933,111430.0,111420.0,0.35500973]
[1761415162621,0.08134933,111430.0,111420.0,0.35500973]
[1761415165222,0.08134933,111430.0,111420.0,0.34814973]
[1761415170532,0.68134933,111430.0,111420.0,0.34814973]
[1761415172736,0.66014,111430.0,111420.0,0.34814973]
[1761415173230,0.66014,111430.0,111420.0,0.29978046]
[1761415173534,0.6813406,111430.0,111420.0,0.34825427]
[1761415173921,0.66014,111430.0,111420.0,0.34825427]
[1761415174439,0.68134043,111430.0,111420.0,0.34825446]
[1761415175642,0.08134043,111430.0,111420.0,0.34825446]
[1761415180640,0.68134043,111430.0,111420.0,0.34825446]
[1761415185640,0.08134043,111430.0,111420.0,0.34825446]
[1761415191147,0.08134043,111430.0,111420.0,0.19722778]
[1761415191349,0.08134043,111430.0,111420.0,0.34825446]
[1761415193847,0.08119043,111430.0,111420.0,0.34825446]
[1761415194343,0.06789043,111430.0,111420.0,0.35511446]
[1761415196949,0.08119043,111430.0,111420.0,0.35511446]
[1761415197149,0.08119043,111430.0,111420.0,0.34825446]
[1761415201956,0.08119043,111430.0,111420.0,0.19722778]
[1761415202247,0.08119043,111430.0,111420.0,0.34825446]
[1761415208647,0.21721723,111430.0,111420.0,0.01480258]
[1761415208851,0.05767,111420.0,111410.0,0.048474]
[1761415209158,0.05767,111410.0,111400.0,0.234234]
[1761415209353,0.07887043,111410.0,111400.0,0.18576]
[1761415210246,0.07887043,111410.0,111400.0,0.3217868]
[1761415210859,0.08087043,111410.0,111400.0,0.3407868]
[1761415216370,0.05967,111410.0,111400.0,0.3407868]
[1761415217055,0.05967,111410.0,111400.0,0.20476]
[1761415217262,0.05967,111410.0,111400.0,0.3407868]
[1761415218762,0.05967,111410.0,111400.0,0.4305441]
[1761415219464,0.05967,111410.0,111400.0,0.3407868]
[1761415228473,0.05967,111410.0,111400.0,0.4305441]
[1761415230875,0.05967,111410.0,111400.0,0.2945173]
[1761415231174,0.05967,111410.0,111400.0,0.4305441]
[1761415231473,0.08085552,111410.0,111400.0,0.4305441]
[1761415238378,0.08085552,111410.0,111400.0,0.4790181]
[1761415255993,0.08085552,111410.0,111400.0,0.3892608]
[1761415266697,0.05967,111410.0,111400.0,0.3892608]
[1761415266996,0.08101205,111410.0,111400.0,0.3892608]
[1761415269502,0.68101205,111410.0,111400.0,0.3892608]
[1761415270698,0.68101205,111410.0,111400.0,0.49409037]
[1761415273603,0.68101205,111410.0,111400.0,0.40433307]
[1761415274606,0.08101205,111410.0,111400.0,0.40433307]
[1761415277216,0.08101205,111410.0,111400.0,0.49409037]
[1761415282115,0.08101205,111410.0,111400.0,0.40433307]
[1761415294618,0.08101205,111410.0,111400.0,0.49409037]
[1761415296723,0.08101205,111410.0,111400.0,0.40433307]
[1761415305625,0.08101205,111410.0,111400.0,0.49409037]
[1761415309927,0.08101205,111410.0,111400.0,0.40433307]
[1761415316026,0.08101205,111410.0,111400.0,0.49409037]
[1761415322037,0.06741205,111410.0,111400.0,0.50072037]
[1761415322536,0.06741205,111410.0,111400.0,0.41096307]
[1761415322735,0.06741205,111410.0,111400.0,0.3496213]
[1761415322937,0.06741205,111410.0,111400.0,0.50072037]
[1761415328938,0.04453205,111410.0,111400.0,0.50072037]
[1761415330735,0.04453205,111410.0,111400.0,0.48559361]
[1761415332939,0.06784205,111410.0,111400.0,0.48559361]
[1761415333438,0.04453205,111410.0,111400.0,0.48559361]
[1761415333639,0.04539205,111410.0,111400.0,0.48559361]
[1761415333938,0.06870205,111410.0,111400.0,0.48559361]
[1761415337340,0.04539205,111410.0,111400.0,0.48559361]
[1761415338642,0.06870205,111410.0,111400.0,0.48559361]
[1761415341348,0.06870205,111410.0,111400.0,0.39583631]
[1761415341549,0.06870205,111410.0,111400.0,0.259864]
[1761415341747,0.06870205,111410.0,111400.0,0.39583631]
[1761415342350,0.08150205,111410.0,111400.0,0.38920631]
[1761415342554,0.08150205,111410.0,111400.0,0.47896361]
[1761415346355,0.08150205,111410.0,111400.0,0.38920631]
[1761415375884,0.08150205,111410.0,111400.0,0.47896361]
[1761415376983,0.08155825,111410.0,111400.0,0.47896361]
[1761415390193,0.08155825,111410.0,111400.0,0.38920631]
[1761415390692,0.08155825,111410.0,111400.0,0.40432614]
[1761415398684,0.08153339,111410.0,111400.0,0.40432614]
[1761415411007,0.08153339,111410.0,111400.0,0.49408344]
[1761415415605,0.08153339,111410.0,111400.0,0.40432614]
[1761415415804,0.08153339,111410.0,111400.0,0.253234]
[1761415416196,0.08153339,111410.0,111400.0,0.427394]
[1761415417108,0.10576926,111410.0,111400.0,0.37892]
[1761415418606,0.2568614,111410.0,111400.0,0.019]
[1761415419002,0.26602596,111410.0,111400.0,0.019]
[1761415419307,0.11493382,111410.0,111400.0,0.019]
[1761415423515,0.71493382,111410.0,111400.0,0.019]
[1761415440921,0.71493382,111410.0,111400.0,0.06362]
[1761415441630,0.71493382,111410.0,111400.0,0.019]
[1761415441923,0.11493382,111410.0,111400.0,0.019]
[1761415444527,0.14721963,111410.0,111400.0,0.019]
[1761415451431,0.14721963,111410.0,111400.0,0.04093]
[1761415451821,0.14721963,111410.0,111400.0,0.019]
[1761415452828,0.28325298,111410.0,111400.0,0.019]
[1761415462342,0.25901711,111410.0,111400.0,0.019]
[1761415469858,0.05761,111390.0,111380.0,0.092714]
[1761415470048,0.01338,111380.0,111370.0,0.54333347]
[1761415470360,0.07898339,111380.0,111370.0,0.54333347]
[1761415471158,0.07898339,111380.0,111370.0,0.49485947]
[1761415471359,0.08298339,111380.0,111370.0,0.52285947]
[1761415471559,0.08298339,111380.0,111370.0,0.38682612]
[1761415471856,0.08298339,111380.0,111370.0,0.52485947]
[1761415473259,0.08298339,111380.0,111370.0,0.38882612]
[1761415473461,0.08298339,111380.0,111370.0,0.52485947]
[1761415474555,0.21901674,111380.0,111370.0,0.38882612]
[1761415474748,0.21901674,111380.0,111370.0,0.52485947]
[1761415475161,0.06161,111380.0,111370.0,0.52485947]
[1761415475956,0.08288322,111380.0,111370.0,0.52485947]
[1761415476457,0.06161,111380.0,111370.0,0.52485947]
[1761415476863,0.08288277,111380.0,111370.0,0.52485947]
[1761415478364,0.06161,111380.0,111370.0,0.52485947]
[1761415479562,0.08288136,111380.0,111370.0,0.52485947]
[1761415482263,0.08288136,111380.0,111370.0,0.38882612]
[1761415482664,0.08288136,111380.0,111370.0,0.52485947]
[1761415483165,0.08288136,111380.0,111370.0,0.21033947]
[1761415486261,0.08288136,111380.0,111370.0,0.07430612]
[1761415486456,0.08288136,111380.0,111370.0,0.21033947]
[1761415500173,0.08288136,111380.0,111370.0,0.25875296]
[1761415502184,0.10707523,111380.0,111370.0,0.25875296]
[1761415503183,0.08288136,111380.0,111370.0,0.25875296]
[1761415503585,0.21891471,111380.0,111370.0,0.21033947]
[1761415504281,0.24310858,111380.0,111370.0,0.52489947]
[1761415504487,0.10707523,111380.0,111370.0,0.52489947]
[1761415504788,0.24310858,111380.0,111370.0,0.52489947]
[1761415505179,0.10707523,111380.0,111370.0,0.52489947]
[1761415514692,0.10707523,111380.0,111370.0,0.38886612]
[1761415515191,0.09369523,111380.0,111370.0,0.54670261]
[1761415515692,0.09369523,111380.0,111370.0,0.39549612]
[1761415516296,0.09369523,111380.0,111370.0,0.54670261]
[1761415516893,0.10636523,111380.0,111370.0,0.54670261]
[1761415517587,0.10644547,111380.0,111370.0,0.54670261]
[1761415518094,0.10644547,111380.0,111370.0,0.39549612]
[1761415518298,0.10644547,111380.0,111370.0,0.38886612]
[1761415521795,0.09377547,111380.0,111370.0,0.54670261]